Workbook

Sheet Bill of Quantities
A1: =SUMMARY!A1 -> JOHANNESBURG WATER
A2: =SUMMARY!A3 -> SOWETO (ORLANDO) STS PREPAYMENT WATER METER AND RETROFITTING INSTALLATIONS
A3: Item No. | B3: Payment Clause | C3: Description | D3: Unit | E3: Qty | F3: Rate | G3: Amount
A5: 1. | B5: SANS 1200A & 1200AB | C5: SCHEDULE A: PRELIMINARY AND GENERAL
A6: =IF(E6=0,"",$A$5&COUNTIF(#REF!,"><*")+1) ->  | B6: 8.3 | C6: FIXED-CHARGE ITEMS
A7: =IF(E7=0,"",$A$5&COUNTIF($A$6:A6,"><*")+1) -> 
A8: 1.1 | B8: 8.3.1 | C8: Contractual requirements | D8: Sum | E8: 1
A9: =IF(E9=0,"",$A$5&COUNTIF($A$6:A8,"><*")+1) -> 
A10: =IF(E10=0,"",$A$5&COUNTIF($A$6:A9,"><*")+1) ->  | B10: 8.3.2 | C10: ESTABLISHMENT OF FACILITIES ON SITE
A11: =IF(E11=0,"",$A$5&COUNTIF($A$6:A10,"><*")+1) ->  | B11: 8.3.2.1 | C11: Facilities for Engineer:
A12: =IF(E12=0,"",$A$5&COUNTIF($A$6:A11,"><*")+1) -> 
A13: 1.2 | B13: PSA 8.3.2.1 | C13: a) Engineers Office Type 2 | D13: Sum | E13: 1
A14: =IF(E14=0,"",$A$5&COUNTIF($A$6:A13,"><*")+1) -> 
C15: b) JW Engineering Team (No.2) | D15: Sum | E15: 1
A16: =IF(E16=0,"",$A$5&COUNTIF($A$6:A15,"><*")+1) -> 
C17: c) QCO's and CLO Office (No.2) | D17: Sum | E17: 1
C19: d) Boardroom (No:1) | D19: Sum | E19: 1
A20: =IF(E20=0,"",$A$5&COUNTIF($A$6:A19,"><*")+1) -> 
C21: e) Parking (No.2) | D21: Sum | E21: 1
A22: =IF(E22=0,"",$A$5&COUNTIF($A$6:A21,"><*")+1) -> 
C23: f) Nameboards (No.4) | D23: Sum | E23: 1
A24: =IF(E24=0,"",$A$5&COUNTIF($A$6:A23,"><*")+1) -> 
C25: g) Communication | D25: Sum | E25: 1
C27: h) Telephone and Computer facilities for Complaints Handler Team (No.4) | D27: Sum | E27: 1
C29: i) Ablution and latrine facilities | D29: Sum | E29: 1
A30: =IF(E30=0,"",$A$5&COUNTIF($A$6:A26,"><*")+1) -> 
A31: 1.3 | B31: 8.3.2.2 | C31: Facilities for the Contractor
A32: =IF(E32=0,"",$A$5&COUNTIF($A$6:A31,"><*")+1) -> 
C33: a) Offices and storage sheds | D33: Sum | E33: 1
C35: b) Workshops | D35: Sum | E35: 1
A36: =IF(E36=0,"",$A$5&COUNTIF($A$6:A33,"><*")+1) -> 
C37: e) Ablution and latrine facilities | D37: Sum | E37: 1
A38: =IF(E38=0,"",$A$5&COUNTIF($A$6:A37,"><*")+1) -> 
C39: f) Tools and equipment | D39: Sum | E39: 1
A40: =IF(E40=0,"",$A$5&COUNTIF($A$6:A39,"><*")+1) -> 
C41: g) Water supplies, electric power and communications | D41: Sum | E41: 1
A42: =IF(E42=0,"",$A$5&COUNTIF($A$6:A41,"><*")+1) -> 
C43: h) Dealing with water (SANS 1200A 5.5) | D43: Sum | E43: 1
A44: =IF(E44=0,"",$A$5&COUNTIF($A$6:A43,"><*")+1) -> 
C45: i) Access (see sub-clause 5.8) | D45: Sum | E45: 1
A47: 1.4 | B47: PSA 8.3.2.2 | C47: Facilities For SMMES Fixed Charge Items
C49: a) Establishment of storage and Facilities for the SMMEs | D49: Sum | E49: 1
C51: b) Tools and equipment | D51: Sum | E51: 1
C53: c) Other Fixed related obligations | D53: Sum | E53: 1
C55: d) Removal of Facilities | D55: Sum | E55: 1
A56: =IF(E56=0,"",$A$5&COUNTIF($A$6:A53,"><*")+1) -> 
A57: 1.5 | B57: PSA 8.3.2.3 | C57: Satellite Facilities for CLO & QCO Team
C59: a) Office for CLO & QCO Team Type 2 (No,4) | D59: Sum | E59: 1
C61: b) Water supplies and electric power | D61: Sum | E61: 1
C63: c) Ablution & Latrine facilities | D63: Sum | E63: 1
C65: d) Removal of facilities | D65: Sum | E65: 1
A67: 1.6 | B67: PSA 8.3.5.1 | C67: OHS Act Obligations | D67: Sum | E67: 1
A68: =IF(E68=0,"",$A$5&COUNTIF($A$6:A67,"><*")+1) -> 
A69: 1.7 | B69: PSA 8.3.5.2 | C69: EMP Obligations | D69: Sum | E69: 1
A71: 1.8 | B71: PSA 8.3.5.3 | C71: Issuing of notices to Customers | D71: Sum | E71: 1
A73: 1.9 | B73: PSA 8.5.3.4 | C73: Other fixed charged obligations | D73: Sum | E73: 1
A74: =IF(E74=0,"",$A$5&COUNTIF($A$6:A69,"><*")+1) -> 
A75: 1.10 | B75: 8.3.4 | C75: Removal of site Establishment | D75: Sum | E75: 1
A76: =IF(E76=0,"",$A$5&COUNTIF($A$6:A75,"><*")+1) -> 
A77: 1.11 | B77: PSA 8.4 | C77: TIME RELATED ITEMS
A78: =IF(E78=0,"",$A$5&COUNTIF($A$6:A77,"><*")+1) -> 
A79: 1.12 | B79: 8.4.1 | C79: Contractual requirements | D79: Month | E79: 18
A80: =IF(E80=0,"",$A$5&COUNTIF($A$6:A79,"><*")+1) -> 
A81: 1.13 | B81: PSA 8.4.3b | C81: Contractor's Supervision for the duration of construction | D81: Month | E81: 18
A83: =IF(E83=0,"",$A$2&COUNTIF($A$3:A82,"><*")+1) ->  | B83: TOTAL CARRIED FORWARD | G83: =SUM(G5:G82) -> 0
A84: =IF(E84=0,"",$A$2&COUNTIF($A$3:A83,"><*")+1) ->  | B84: TOTAL BROUGHT FORWARD | G84: =G83 -> 0
C85: Operation & Maintenance of Facilities on Site
A87: 1.14 | B87: PSA 8.4.2 | C87: Facilities for Engineer:
A88: =IF(E88=0,"",$A$5&COUNTIF($A$6:A85,"><*")+1) -> 
C89: a) Engineers Office Type 2 | D89: Month | E89: 18
A90: =IF(E90=0,"",$A$5&COUNTIF($A$6:A89,"><*")+1) -> 
C91: b) JW Engineering Team (No.2) | D91: Month | E91: 18
C93: c) QCO's and CLO Office (No.2) | D93: Month | E93: 18
C95: d) Boardroom (No:1) | D95: Month | E95: 18
A96: =IF(E96=0,"",$A$5&COUNTIF($A$6:A95,"><*")+1) -> 
C97: e) Parking (No.2) | D97: Month | E97: 18
A98: =IF(E98=0,"",$A$5&COUNTIF($A$6:A97,"><*")+1) -> 
C99: f) Nameboards (No.4) | D99: Month | E99: 18
A100: =IF(E100=0,"",$A$5&COUNTIF($A$6:A99,"><*")+1) -> 
C101: g) Communication | D101: Month | E101: 18
C103: h) Telephone and Computer facilities for Complaints Handler Team (No.4) | D103: Month | E103: 18
C105: i) Ablution and latrine facilities | D105: Month | E105: 18
A107: 1.15 | B107: PSA 8.4.3 | C107: Facilities for the Contractor:
C108: a)Contractor's head office overhead costs for the duration of the Contract | D108: Month | E108: 18
C110: c) Offices and storage sheds | D110: Month | E110: 18
A111: =IF(E111=0,"",$A$5&COUNTIF($A$6:A110,"><*")+1) -> 
C112: d) Ablution and latrine facilities | D112: Month | E112: 18
A113: =IF(E113=0,"",$A$5&COUNTIF($A$6:A112,"><*")+1) -> 
C114: e) Tools and equipment | D114: Month | E114: 18
A115: =IF(E115=0,"",$A$5&COUNTIF($A$6:A114,"><*")+1) -> 
C116: f) Water supplies, electric power and communications | D116: Month | E116: 18
A117: =IF(E117=0,"",$A$5&COUNTIF($A$6:A116,"><*")+1) -> 
C118: g) Dealing with water (SANS 1200A 5.5) | D118: Month | E118: 18
A119: =IF(E119=0,"",$A$5&COUNTIF($A$6:A118,"><*")+1) -> 
C120: h) Access (see sub-clause 5.8) | D120: Month | E120: 18
A122: 1.16 | B122: PSA 8.4.4 | C122: OHS Act Obligations | D122: Month | E122: 18
A123: =IF(E123=0,"",$A$5&COUNTIF($A$6:A120,"><*")+1) -> 
A124: 1.17 | B124: PSA 8.4.5 | C124: EMP Obligations | D124: Month | E124: 18
A126: 1.18 | B126: PSA 8.4.6 | C126: Security Services | D126: Month | E126: 18
A128: 1.19 | B128: PSA 8.4.7 | C128: Contractor's Supervision of SMMEs for the duration of construction | D128: Month | E128: 18
A130: 1.20 | B130: PSA 8.4.8 | C130: Facilities for SMMEs Time Related Items
C132: a) Storage Facilitities | D132: Month | E132: 18
C134: b) Tools and equipment | D134: Month | E134: 18
C136: c) Other time related obligations | D136: Month | E136: 18
A138: 1.21 | B138: PSA 8.4.9 | C138: Satellite Facilities for CLO & QCO Team
C140: a) Office for CLO & QCO Team Type 2 (No,4) | D140: Month | E140: 18
C142: b) Water supplies and electric power | D142: Month | E142: 18
C144: c) Ablution & Latrine facilities | D144: Month | E144: 18
C146: d) Security services | D146: Month | E146: 18
A152: =IF(E152=0,"",$A$2&COUNTIF($A$3:A151,"><*")+1) ->  | B152: TOTAL CARRIED FORWARD | G152: =SUM(G84:G151) -> 0
A153: =IF(E153=0,"",$A$2&COUNTIF($A$3:A152,"><*")+1) ->  | B153: TOTAL BROUGHT FORWARD | G153: =G152 -> 0
A154: =IF(E154=0,"",$A$5&COUNTIF($A$6:A151,"><*")+1) -> 
A155: 1.23 | B155: PSA 8.5 | C155: PROVISIONAL SUMS STATED BY ENGINEER
A156: =IF(E156=0,"",$A$5&COUNTIF($A$6:A155,"><*")+1) -> 
C157: a) Community Liaison Officer Salaries and cellphone allowance(No 6) | D157: Prov. Sum | E157: 1 | F157: R1,404,000.00 | G157: =E157*F157 -> R1,404,000.00
A158: =IF(E158=0,"",$A$5&COUNTIF($A$6:A157,"><*")+1) -> 
C159: b) JW Communications and Complaints Handling team | D159: Prov. Sum | E159: 1 | F159: R1,433,300.00 | G159: =E159*F159 -> R1,433,300.00
A160: =IF(E160=0,"",$A$5&COUNTIF($A$6:A159,"><*")+1) -> 
C161: c) Community awareness material | D161: Prov. Sum | E161: 1 | F161: R100,000.00 | G161: =E161*F161 -> R100,000.00
A162: =IF(E162=0,"",$A$5&COUNTIF($A$6:A161,"><*")+1) -> 
C163: d) QCF and QCO(No:5) | D163: Prov. Sum | E163: 1 | F163: R1,980,000.00 | G163: =E163*F163 -> R1,980,000.00
C165: e) Training but not limited to the following: Plumbing | D165: Prov. Sum | E165: 1 | F165: R300,000.00 | G165: R300,000.00
C167: f) MIS System or similar approved Training | D167: Prov. Sum | E167: 1 | F167: R100,000.00 | G167: =E167*F167 -> R100,000.00
C169: g) Reinstatement of Asphalt by JRA | D169: Prov. Sum | E169: 1 | F169: R200,000.00 | G169: =E169*F169 -> R200,000.00
A172: 1.23.1 | C172: Overheads, charges and profit on item 1.23 (a) to 1.23 (g) | D172: % | E172: =SUM(G157:G170) -> R5,517,300.00
A174: 1.24 | B174: 8.8 | C174: TEMPORARY WORKS
B176: 8.8.4 | C176: Existing Services
B178: PSA 8.4.12 | C178: a) Excavation by hand in all material to expose existing services | D178: m3 | E178: 2,000.00
A179: =IF(E179=0,"",$A$5&COUNTIF($A$6:A172,"><*")+1) -> 
B180: PSA 8.4.13 | C180: b) Temporary protection of services | D180: Sum | E180: 1
B182: PSA 8.4.14 | C182: c)Accomodation of traffic | D182: Sum | E182: 1
B184: PSA 8.4.15 | C184: d) Provision of photographic records | D184: Sum | E184: 1
A186: 1.25 | B186: PSA 8.16 | C186: DAY WORKS (the rate shall cover overhead charges and profit of all day works itesm listed) (to be executed on instruction from the Employer's Agent)
A187: =IF(E187=0,"",$A$5&COUNTIF($A$6:A186,"><*")+1) -> 
A188: 1.25.1 | C188: Labour
A189: =IF(E189=0,"",$A$5&COUNTIF($A$6:A188,"><*")+1) -> 
C190: a) Unskilled | D190: hr | E190: 150
A191: =IF(E191=0,"",$A$5&COUNTIF($A$6:A190,"><*")+1) -> 
C192: b) Semi skilled | D192: hr | E192: 150
A193: =IF(E193=0,"",$A$5&COUNTIF($A$6:A192,"><*")+1) -> 
C194: c) Skilled | D194: hr | E194: 150
A195: =IF(E195=0,"",$A$5&COUNTIF($A$6:A194,"><*")+1) -> 
C196: d) Armed Security guard | D196: hr | E196: 150
A197: =IF(E197=0,"",$A$5&COUNTIF($A$6:A196,"><*")+1) -> 
A198: 1.25.2 | C198: TLB's (Tractor loader backhoe)
A199: =IF(E199=0,"",$A$5&COUNTIF($A$6:A198,"><*")+1) -> 
C200: a) 2x4 | D200: hr | E200: 150
A201: =IF(E201=0,"",$A$5&COUNTIF($A$6:A200,"><*")+1) -> 
C202: b) 4x4 | D202: hr | E202: 150
A203: =IF(E203=0,"",$A$5&COUNTIF($A$6:A202,"><*")+1) -> 
A204: 1.25.3 | C204: Compactors
A205: =IF(E205=0,"",$A$5&COUNTIF($A$6:A204,"><*")+1) -> 
C206: a) Wacker | D206: hr | E206: 48
A207: =IF(E207=0,"",$A$5&COUNTIF($A$6:A206,"><*")+1) -> 
C208: b) Plate compactor | D208: hr | E208: 48
A209: =IF(E209=0,"",$A$5&COUNTIF($A$6:A208,"><*")+1) -> 
A210: 1.25.4 | C210: Generator (Wet Rate)
A211: =IF(E211=0,"",$A$5&COUNTIF($A$6:A210,"><*")+1) -> 
C212: a) 3kVA | D212: hr | E212: 100
A213: =IF(E213=0,"",$A$5&COUNTIF($A$6:A212,"><*")+1) -> 
C214: b) 5kVa | D214: hr | E214: 100
A233: =IF(E233=0,"",$A$5&COUNTIF($A$6:A208,"><*")+1) ->  | B233: TOTAL CARRIED FORWARD TO SUMMARY
A234: Item No. | B234: Payment Clause | C234: Description | D234: Unit | E234: Qty | F234: Rate | G234: Amount
A236: 2 | B236: SANS 1200C | C236: SCHEDULE B: SITE CLEARANCE
A238: 2.1 | B238: PSC 8.2.1 | C238: Clear and grub (2 metre width) | D238: m | E238: 8300
A240: 2.2 | B240: PSC 8.2.14 | C240: Protection of trees as ordered by Engineer | D240: No | E240: 200
A242: 2.3 | B242: 8.2.10 | C242: Remove topsoil to nominal depth of 150mm and stockpile for re-use as directed by Engineer | D242: m3 | E242: 2178
A244: 2.4 | B244: PSC 8.2.11b | C244: Removal of man-made surfaces, stockpile materials for later re-use
C246: a) Footways and driveways
C248: i) Asphalt (≤ 50mm thickness) | D248: m2 | E248: 2022
C250: ii) Asphalt (≥ 50 - 100mm thickness) | D250: m2 | E250: 1213
C252: iii) Interlocking concrete segmental paving blocks (all colours) | D252: m2 | E252: 6066
C254: iv) Concrete slabs (450 x 450mm) | D254: m2 | E254: 404
C256: v) Brick paving | D256: m2 | E256: 3235
C258: vi) Grassing and vegetation | D258: m2 | E258: 1618
C260: vii) Unreinforced concrete <75mm thick | D260: m³ | E260: 4044
C262: viii) Reinforced concrete <75mm thick | D262: m³ | E262: 1011
C264: ix) Kerbing (All types of kerbs) | D264: m | E264: 3235
C266: x) Dump rock/Stone pitching | D266: m³ | E266: 485
C268: xi) Steel palisade | D268: m | E268: 404
C270: xii) Concrete palisade | D270: m | E270: 404
C272: xiii) Removal of all other fences | D272: m | E272: 404
C274: xiv) Demolish of 115mm brick boundary wall | D274: m | E274: 404
C276: xv) Demolish of 230mm brick boundary wall | D276: m | E276: 404
C278: xvi) Tiles | D278: m2 | E278: 2022
A280: 2.5 | B280: PSC 8.2.12 | C280: Backfilling and reinstatement of man-made surfaces
C282: a) Backfilling and reinstatement of footways and driveways using materials recovered in item 2.4 above
C284: i) Interlocking concrete segmental paving blocks (all colours) | D284: m2 | E284: 4246
C286: ii) Concrete slabs (450 x 450mm) | D286: m2 | E286: 283
C288: iii) Brick paving | D288: m2 | E288: 2265
C290: iv) Grassing and vegetation | D290: m2 | E290: 809
C292: v) Kerbing (All types of kerbs) | D292: m | E292: 2265
C294: vi) Dump rock/Stone pitching | D294: m³ | E294: 243
A295: TOTAL CARRIED FORWARD | G295: =SUM(G238:G294) -> 0
A296: TOTAL BROUGHT FORWARD | G296: =G295 -> 0
A298: 2.6 | B298: PSC 8.2.12 | C298: a) Backfilling and reinstatement of footways and driveways using new materials
C300: i) Asphalt (≤ 50mm thickness) | D300: m2 | E300: 2022
C302: ii) Asphalt (≥ 50 - 100mm thickness) | D302: m2 | E302: 1213
C304: iii) Interlocking concrete segmental paving blocks (all colours) | D304: m2 | E304: 1820
C306: iv) Concrete slabs (450 x 450mm) | D306: m2 | E306: 121
... 500 more rows

Sheet SUMMARY
A1: JOHANNESBURG WATER
A2: CONTRACT NUMBER: JW14431
A3: SOWETO (ORLANDO) STS PREPAYMENT WATER METER AND RETROFITTING INSTALLATIONS
A4: DESCRIPTION
A6: ='Bill of Quantities'!C5 -> SCHEDULE A: PRELIMINARY AND GENERAL | C6: ='Bill of Quantities'!G233 -> 0
A8: SCHEDULE B: SITE CLEARANCE | C8: ='Bill of Quantities'!G332 -> 0
A10: SCHEDULE C: EARTHWORKS (PIPE TRENCHES) | C10: ='Bill of Quantities'!G413 -> 0
A12: SCHEDULE D: BEDDING (PIPES) | C12: ='Bill of Quantities'!G450 -> 0
A14: SCHEDULE E: MEDIUM PRESSURE PIPELINES | C14: ='Bill of Quantities'!G849 -> 0
A16: SCHEDULE F: ERF CONNECTIONS | C16: ='Bill of Quantities'!G925 -> 0
A18: SCHEDULE G: YARD CONNECTIONS
A20: SCHEDULE H: ON PROPERTY PLUMBING | C20: ='Bill of Quantities'!G1004 -> 0
A22: SCHEDULE I: METER INSTALLATION | C22: ='Bill of Quantities'!G1051 -> 0
A24: SCHEDULE J: OCCUPATIONAL HEALTH AND SAFETY | C24: ='Bill of Quantities'!G1086 -> 0
A26: SUBTOTAL 1……………………………………..…………………………………………… | C26: =SUM(C6:C25) -> 0
A27: 10% Escalation | C27: =C26*0.1 -> 0
A28: SUBTOTAL 2……………………………………..…………………………………………… | C28: =C26+C27 -> 0
A29: 10% Contingencies | C29: =10%*C28 -> 0
A30: SUBTOTAL 3……………………………………..…………………………………………… | C30: =C28+C29 -> 0
A31: 15% VAT | C31: =15%*C30 -> 0
A32: Amount Incl.VAT | C32: =SUM(C30:C31) -> 0
